[Event "*** SCC Grand Prix: Titled Tuesday Blitz"]
[Site "Chess.com"]
[Date "2020.10.06"]
[Round "5"]
[White "Iskusnyh"]
[Black "RobertoJBM"]
[Result "0-1"]
[WhiteElo "2566"]
[BlackElo "2739"]
[TimeControl "180+1"]
[EndTime "10:57:11 PDT"]
[Termination "RobertoJBM won by resignation"]

1. d4 {[%clk 0:03:00.9]} 1... d5 {[%clk 0:02:59.4]} 2. c4 {[%clk 0:03:00.9]}
2... c6 {[%clk 0:02:58.3]} 3. Nf3 {[%clk 0:03:00.5]} 3... Nf6 {[%clk 0:02:58.1]}
4. e3 {[%clk 0:03:00.8]} 4... Bf5 {[%clk 0:02:54.9]} 5. Nc3 {[%clk 0:03:00.4]}
5... e6 {[%clk 0:02:55]} 6. Nh4 {[%clk 0:03:00.8]} 6... Be4 {[%clk 0:02:55.2]}
7. f3 {[%clk 0:03:00.1]} 7... Bg6 {[%clk 0:02:55.1]} 8. Bd2 {[%clk 0:03:00.2]}
8... Nbd7 {[%clk 0:02:54.7]} 9. Qb3 {[%clk 0:02:56.2]} 9... Qc7 {[%clk
0:02:53.2]} 10. cxd5 {[%clk 0:02:53.7]} 10... exd5 {[%clk 0:02:51.8]} 11. O-O-O
{[%clk 0:02:50.4]} 11... Be7 {[%clk 0:02:45.6]} 12. Nxg6 {[%clk 0:02:48.3]}
12... hxg6 {[%clk 0:02:46.5]} 13. e4 {[%clk 0:02:45.5]} 13... dxe4 {[%clk
0:02:44.9]} 14. fxe4 {[%clk 0:02:44.8]} 14... Nb6 {[%clk 0:02:21]} 15. Kb1
{[%clk 0:02:37.2]} 15... Rd8 {[%clk 0:02:01.6]} 16. Be3 {[%clk 0:02:00.1]} 16...
Rxh2 {[%clk 0:01:53.4]} 17. Be2 {[%clk 0:01:54.6]} 17... Qg3 {[%clk 0:01:43.1]}
18. Bf3 {[%clk 0:01:36.3]} 18... Ng4 {[%clk 0:01:01]} 19. Rxh2 {[%clk
0:01:07.8]} 19... Nxh2 {[%clk 0:00:59.3]} 20. d5 {[%clk 0:00:55.6]} 20... Nxf3
{[%clk 0:00:54.1]} 21. gxf3 {[%clk 0:00:54.7]} 21... Qxf3 {[%clk 0:00:37.9]} 22.
Bxb6 {[%clk 0:00:54.2]} 22... axb6 {[%clk 0:00:38.8]} 23. Qxb6 {[%clk
0:00:54.1]} 23... Rd7 {[%clk 0:00:38.6]} 24. a3 {[%clk 0:00:48.9]} 24... Bf6
{[%clk 0:00:24.7]} 25. Rc1 {[%clk 0:00:46]} 25... Bxc3 {[%clk 0:00:23.1]} 26.
Rxc3 {[%clk 0:00:45.4]} 26... Qxe4+ {[%clk 0:00:23.1]} 27. Ka1 {[%clk
0:00:45.5]} 27... Qxd5 {[%clk 0:00:20.6]} 28. Re3+ {[%clk 0:00:42.7]} 28... Kf8
{[%clk 0:00:21]} 29. Qb4+ {[%clk 0:00:41.3]} 29... Qd6 {[%clk 0:00:18.9]} 30.
Qh4 {[%clk 0:00:38.7]} 30... Qd1+ {[%clk 0:00:14.3]} 31. Ka2 {[%clk 0:00:38.4]}
31... Qh5 {[%clk 0:00:13.3]} 32. Qf4 {[%clk 0:00:34.3]} 32... Qd5+ {[%clk
0:00:12.4]} 33. Ka1 {[%clk 0:00:33.9]} 33... Rd8 {[%clk 0:00:11.1]} 34. Qh4
{[%clk 0:00:33.2]} 34... Qd1+ {[%clk 0:00:11]} 35. Ka2 {[%clk 0:00:32.5]} 35...
Kg8 {[%clk 0:00:11.4]} 36. Rh3 {[%clk 0:00:30.7]} 36... Qd5+ {[%clk 0:00:11.9]}
37. Ka1 {[%clk 0:00:29.8]} 37... f6 {[%clk 0:00:12.8]} 38. Qh7+ {[%clk
0:00:28.1]} 38... Kf7 {[%clk 0:00:13.7]} 39. Rg3 {[%clk 0:00:26.8]} 39... Qd1+
{[%clk 0:00:13.8]} 40. Ka2 {[%clk 0:00:26]} 40... Qh5 {[%clk 0:00:14.7]} 41.
Qxh5 {[%clk 0:00:20.6]} 41... gxh5 {[%clk 0:00:15.6]} 42. Rb3 {[%clk 0:00:20.6]}
42... Rd7 {[%clk 0:00:15.7]} 43. a4 {[%clk 0:00:20.6]} 43... g5 {[%clk
0:00:15.9]} 44. a5 {[%clk 0:00:20.5]} 44... h4 {[%clk 0:00:16.5]} 0-1

[Event "*** SCC Grand Prix: Titled Tuesday Blitz"]
[Site "Chess.com"]
[Date "2020.10.06"]
[Round "5"]
[White "beto-betun"]
[Black "SHIVACalypso"]
[Result "0-1"]
[WhiteElo "2153"]
[BlackElo "2357"]
[TimeControl "180+1"]
[EndTime "10:57:11 PDT"]
[Termination "SHIVACalypso won on time"]

1. d4 {[%clk 0:03:00.9]} 1... e6 {[%clk 0:02:54.3]} 2. Nf3 {[%clk 0:02:57.7]}
2... Nf6 {[%clk 0:02:46.2]} 3. g3 {[%clk 0:02:53.6]} 3... d5 {[%clk 0:02:45.5]}
4. Bg2 {[%clk 0:02:53.1]} 4... Be7 {[%clk 0:02:44.3]} 5. O-O {[%clk 0:02:53.2]}
5... O-O {[%clk 0:02:43.4]} 6. c4 {[%clk 0:02:53.6]} 6... dxc4 {[%clk
0:02:43.2]} 7. Qc2 {[%clk 0:02:54.1]} 7... a6 {[%clk 0:02:42.4]} 8. Qxc4 {[%clk
0:02:53.7]} 8... b5 {[%clk 0:02:42.3]} 9. Qc2 {[%clk 0:02:53]} 9... Bb7 {[%clk
0:02:42.2]} 10. Rd1 {[%clk 0:02:50.5]} 10... Nbd7 {[%clk 0:02:35.7]} 11. a4
{[%clk 0:02:47]} 11... Be4 {[%clk 0:02:25.7]} 12. Qb3 {[%clk 0:02:39]} 12... Bd5
{[%clk 0:02:19.7]} 13. Qc2 {[%clk 0:02:37.4]} 13... Be4 {[%clk 0:02:18.4]} 14.
Qb3 {[%clk 0:02:37.4]} 14... b4 {[%clk 0:02:16.5]} 15. Nbd2 {[%clk 0:02:32.4]}
15... Bd5 {[%clk 0:02:16.1]} 16. Qc2 {[%clk 0:02:33]} 16... a5 {[%clk
0:02:07.4]} 17. b3 {[%clk 0:02:33.2]} 17... Nb6 {[%clk 0:02:06.4]} 18. Nc4
{[%clk 0:02:08.3]} 18... Rc8 {[%clk 0:01:53.4]} 19. Nxa5 {[%clk 0:02:04.4]}
19... Be4 {[%clk 0:01:48.2]} 20. Qd2 {[%clk 0:01:53.3]} 20... Qd5 {[%clk
0:01:48.2]} 21. Nc4 {[%clk 0:01:41.1]} 21... Nxc4 {[%clk 0:01:46.5]} 22. bxc4
{[%clk 0:01:42]} 22... Qxc4 {[%clk 0:01:46.8]} 23. Ne5 {[%clk 0:01:28]} 23...
Qc2 {[%clk 0:01:42.5]} 24. Bxe4 {[%clk 0:01:23.8]} 24... Qxe4 {[%clk 0:01:38.7]}
25. f3 {[%clk 0:01:13.9]} 25... Qb7 {[%clk 0:01:36.7]} 26. Bb2 {[%clk
0:01:09.2]} 26... Rfd8 {[%clk 0:01:35.5]} 27. a5 {[%clk 0:00:53.6]} 27... c5
{[%clk 0:01:32.4]} 28. a6 {[%clk 0:00:51.7]} 28... Qa7 {[%clk 0:01:29.8]} 29. e3
{[%clk 0:00:46.1]} 29... c4 {[%clk 0:01:29.3]} 30. Qf2 {[%clk 0:00:40.7]} 30...
c3 {[%clk 0:01:29]} 31. Bc1 {[%clk 0:00:39.3]} 31... b3 {[%clk 0:01:27.8]} 32.
Ba3 {[%clk 0:00:34.1]} 32... b2 {[%clk 0:01:25.8]} 33. Bxb2 {[%clk 0:00:31]}
33... cxb2 {[%clk 0:01:25.6]} 34. Qxb2 {[%clk 0:00:31.8]} 34... Nd5 {[%clk
0:01:19.7]} 35. Qb7 {[%clk 0:00:25.5]} 35... Qa8 {[%clk 0:01:07.3]} 36. Rdc1
{[%clk 0:00:19]} 36... Rxc1+ {[%clk 0:01:04.5]} 37. Rxc1 {[%clk 0:00:19.9]}
37... f6 {[%clk 0:00:56.6]} 38. Nc6 {[%clk 0:00:19.5]} 38... Re8 {[%clk
0:00:52]} 39. e4 {[%clk 0:00:19.9]} 39... Ba3 {[%clk 0:00:26.9]} 40. Rc2 {[%clk
0:00:15.6]} 40... Ne3 {[%clk 0:00:24.4]} 41. Ra2 {[%clk 0:00:11.6]} 41... Bf8
{[%clk 0:00:20.2]} 42. Rb2 {[%clk 0:00:04.2]} 42... Nc4 {[%clk 0:00:19.2]} 0-1

[Event "*** SCC Grand Prix: Titled Tuesday Blitz"]
[Site "Chess.com"]
[Date "2020.10.06"]
[Round "5"]
[White "barbara25"]
[Black "anasta10"]
[Result "0-1"]
[WhiteElo "2328"]
[BlackElo "2480"]
[TimeControl "180+1"]
[EndTime "10:57:12 PDT"]
[Termination "anasta10 won by resignation"]

1. e4 {[%clk 0:03:00.9]} 1... e6 {[%clk 0:02:58.5]} 2. e5 {[%clk 0:02:59.5]}
2... d5 {[%clk 0:02:59.4]} 3. exd6 {[%clk 0:02:59.3]} 3... cxd6 {[%clk
0:02:59.2]} 4. d4 {[%clk 0:02:59.9]} 4... Nc6 {[%clk 0:03:00.1]} 5. Nf3 {[%clk
0:03:00.1]} 5... Nf6 {[%clk 0:03:00.2]} 6. c4 {[%clk 0:03:00.1]} 6... d5 {[%clk
0:02:59.7]} 7. c5 {[%clk 0:03:00.3]} 7... Qc7 {[%clk 0:02:58.4]} 8. Nc3 {[%clk
0:02:59.9]} 8... Be7 {[%clk 0:02:58]} 9. Bd3 {[%clk 0:02:57.7]} 9... O-O {[%clk
0:02:56.9]} 10. O-O {[%clk 0:02:57.1]} 10... b6 {[%clk 0:02:56.9]} 11. Nb5
{[%clk 0:02:55.9]} 11... Qb8 {[%clk 0:02:55]} 12. b4 {[%clk 0:02:53.2]} 12...
Nxb4 {[%clk 0:02:51.5]} 13. Be2 {[%clk 0:02:53.2]} 13... bxc5 {[%clk 0:02:50.9]}
14. dxc5 {[%clk 0:02:53]} 14... Bxc5 {[%clk 0:02:51.4]} 15. Rb1 {[%clk
0:02:51.9]} 15... a6 {[%clk 0:02:49.1]} 16. Nc3 {[%clk 0:02:50.1]} 16... Qa7
{[%clk 0:02:47.2]} 17. Na4 {[%clk 0:02:49.3]} 17... Bd6 {[%clk 0:02:44.7]} 18.
Be3 {[%clk 0:02:48.9]} 18... Qe7 {[%clk 0:02:45]} 19. Nd4 {[%clk 0:02:36.8]}
19... Bd7 {[%clk 0:02:41.2]} 20. Nb6 {[%clk 0:02:24.5]} 20... Rab8 {[%clk
0:02:38.1]} 21. Nxd7 {[%clk 0:02:21.9]} 21... Qxd7 {[%clk 0:02:37]} 22. a3
{[%clk 0:02:21.8]} 22... Nc6 {[%clk 0:02:36.8]} 23. Bxa6 {[%clk 0:02:15.8]}
23... Nxd4 {[%clk 0:02:35.5]} 24. Bxd4 {[%clk 0:02:15.9]} 24... Bxa3 {[%clk
0:02:31.4]} 25. Bxf6 {[%clk 0:02:15.4]} 25... gxf6 {[%clk 0:02:31.3]} 26. Qg4+
{[%clk 0:02:14]} 26... Kh8 {[%clk 0:02:30.9]} 27. Bd3 {[%clk 0:02:13.6]} 27...
f5 {[%clk 0:02:17.5]} 28. Qh3 {[%clk 0:02:13.5]} 28... Bd6 {[%clk 0:02:14.2]}
29. Kh1 {[%clk 0:02:08]} 29... Be5 {[%clk 0:02:14.3]} 30. g4 {[%clk 0:01:58.2]}
30... Rxb1 {[%clk 0:02:13.5]} 31. Bxb1 {[%clk 0:01:55.2]} 31... Bf6 {[%clk
0:02:08.2]} 32. gxf5 {[%clk 0:01:53]} 32... e5 {[%clk 0:01:57.3]} 33. f3 {[%clk
0:01:51]} 33... Rg8 {[%clk 0:01:48.2]} 34. Qh6 {[%clk 0:01:48.6]} 34... Bg5
{[%clk 0:01:41.9]} 35. Qh5 {[%clk 0:01:46.2]} 35... f6 {[%clk 0:01:42.2]} 36.
Rg1 {[%clk 0:01:38.8]} 36... Qd8 {[%clk 0:01:23.9]} 37. h4 {[%clk 0:01:30.6]}
37... Be3 {[%clk 0:01:22]} 38. Rg4 {[%clk 0:01:21.9]} 38... Qb8 {[%clk
0:01:17.9]} 39. Ba2 {[%clk 0:01:06.8]} 39... Qa8 {[%clk 0:01:12.5]} 40. Qf7
{[%clk 0:00:48.2]} 40... Rxg4 {[%clk 0:01:07]} 41. fxg4 {[%clk 0:00:46.9]} 41...
d4+ {[%clk 0:01:05.8]} 42. Qd5 {[%clk 0:00:32.8]} 42... Qxd5+ {[%clk 0:01:01.8]}
43. Bxd5 {[%clk 0:00:32.2]} 43... d3 {[%clk 0:01:02]} 44. Kg2 {[%clk 0:00:30.6]}
44... d2 {[%clk 0:01:01.6]} 45. Bb3 {[%clk 0:00:29.9]} 45... Bf4 {[%clk
0:00:58.4]} 46. Kf3 {[%clk 0:00:29.5]} 46... Kg7 {[%clk 0:00:58.4]} 47. h5
{[%clk 0:00:28.2]} 47... Kh6 {[%clk 0:00:58.5]} 48. Bd1 {[%clk 0:00:27.8]} 48...
Kg5 {[%clk 0:00:58.9]} 49. Be2 {[%clk 0:00:27.3]} 49... Kh4 {[%clk 0:00:59]} 50.
Bd1 {[%clk 0:00:18.7]} 50... Bg5 {[%clk 0:00:59.4]} 51. Be2 {[%clk 0:00:18.2]}
51... Kh3 {[%clk 0:00:50.4]} 52. Bd1 {[%clk 0:00:17.3]} 52... Kh2 {[%clk
0:00:50.3]} 53. Ke2 {[%clk 0:00:17.1]} 53... Kg1 {[%clk 0:00:50.5]} 54. Bc2
{[%clk 0:00:16.7]} 54... Kg2 {[%clk 0:00:50.7]} 55. Bd1 {[%clk 0:00:16.9]} 55...
Kg3 {[%clk 0:00:51.1]} 56. Kd3 {[%clk 0:00:15.8]} 56... Kf2 {[%clk 0:00:51.3]}
57. Bc2 {[%clk 0:00:10.5]} 57... Ke1 {[%clk 0:00:51.2]} 0-1

[Event "*** SCC Grand Prix: Titled Tuesday Blitz"]
[Site "Chess.com"]
[Date "2020.10.06"]
[Round "5"]
[White "SilviusTiberius"]
[Black "Chessdreamer2020"]
[Result "0-1"]
[WhiteElo "2643"]
[BlackElo "2461"]
[TimeControl "180+1"]
[EndTime "10:57:13 PDT"]
[Termination "Chessdreamer2020 won on time"]

1. e4 {[%clk 0:03:00.9]} 1... d6 {[%clk 0:02:59.5]} 2. d4 {[%clk 0:03:00]} 2...
Nf6 {[%clk 0:03:00]} 3. Nc3 {[%clk 0:02:59.4]} 3... e5 {[%clk 0:03:00.6]} 4. Nf3
{[%clk 0:02:55.2]} 4... Nbd7 {[%clk 0:03:00.2]} 5. Bc4 {[%clk 0:02:55.5]} 5...
Be7 {[%clk 0:03:00.6]} 6. O-O {[%clk 0:02:55.4]} 6... Nb6 {[%clk 0:02:57.9]} 7.
Be2 {[%clk 0:02:49.8]} 7... exd4 {[%clk 0:02:55.9]} 8. Nxd4 {[%clk 0:02:49.2]}
8... O-O {[%clk 0:02:54.9]} 9. f4 {[%clk 0:02:47]} 9... Re8 {[%clk 0:02:54.4]}
10. b3 {[%clk 0:02:42.8]} 10... Bf8 {[%clk 0:02:52.3]} 11. Bf3 {[%clk
0:02:42.8]} 11... c6 {[%clk 0:02:50.2]} 12. Bb2 {[%clk 0:02:40.7]} 12... d5
{[%clk 0:02:49.6]} 13. e5 {[%clk 0:02:40.1]} 13... Nfd7 {[%clk 0:02:50.1]} 14.
Qe1 {[%clk 0:02:24]} 14... Nc5 {[%clk 0:02:38.6]} 15. Qg3 {[%clk 0:02:21.4]}
15... Ne6 {[%clk 0:02:29.2]} 16. Nf5 {[%clk 0:02:20.8]} 16... g6 {[%clk
0:02:29.3]} 17. Rad1 {[%clk 0:02:14.9]} 17... Nxf4 {[%clk 0:02:20.8]} 18. Qxf4
{[%clk 0:02:13.3]} 18... Bxf5 {[%clk 0:02:20.5]} 19. Ne4 {[%clk 0:02:11]} 19...
Bxe4 {[%clk 0:02:10.4]} 20. Bxe4 {[%clk 0:02:07.4]} 20... Qe7 {[%clk 0:02:07.8]}
21. Bd3 {[%clk 0:01:50.8]} 21... Bg7 {[%clk 0:02:07.5]} 22. h4 {[%clk 0:01:03]}
22... Nd7 {[%clk 0:01:57.3]} 23. Rde1 {[%clk 0:00:57.7]} 23... Bxe5 {[%clk
0:01:51.5]} 24. Bxe5 {[%clk 0:00:20.8]} 24... Nxe5 {[%clk 0:01:51.1]} 25. h5
{[%clk 0:00:21.7]} 25... f5 {[%clk 0:01:20.6]} 26. hxg6 {[%clk 0:00:21.2]} 26...
hxg6 {[%clk 0:01:21.1]} 27. Bxf5 {[%clk 0:00:14.1]} 27... gxf5 {[%clk 0:01:18]}
28. Qxf5 {[%clk 0:00:14.4]} 28... Qg7 {[%clk 0:00:51.2]} 29. Re3 {[%clk
0:00:13.3]} 29... Ng4 {[%clk 0:00:20.3]} 30. Rg3 {[%clk 0:00:05.9]} 30... Re4
{[%clk 0:00:20.1]} 31. Rgf3 {[%clk 0:00:03.7]} 31... Rae8 {[%clk 0:00:13.2]} 32.
g3 {[%clk 0:00:03.4]} 32... Re2 {[%clk 0:00:08.2]} 33. Rf4 {[%clk 0:00:03.2]}
33... Ne3 {[%clk 0:00:06.5]} 34. Qd7 {[%clk 0:00:01.4]} 34... Qxd7 {[%clk
0:00:04.4]} 0-1

[Event "*** SCC Grand Prix: Titled Tuesday Blitz"]
[Site "Chess.com"]
[Date "2020.10.06"]
[Round "5"]
[White "KarstenHansch"]
[Black "JonahWillow"]
[Result "1-0"]
[WhiteElo "2503"]
[BlackElo "2695"]
[TimeControl "180+1"]
[EndTime "10:57:16 PDT"]
[Termination "KarstenHansch won by resignation"]

1. e4 {[%clk 0:02:49.8]} 1... c5 {[%clk 0:03:00.1]} 2. Nf3 {[%clk 0:02:49.4]}
2... Nc6 {[%clk 0:03:00.6]} 3. Bb5 {[%clk 0:02:49.3]} 3... g6 {[%clk 0:03:00.6]}
4. O-O {[%clk 0:02:48.2]} 4... Bg7 {[%clk 0:03:00.5]} 5. c3 {[%clk 0:02:47.5]}
5... Nf6 {[%clk 0:03:00.3]} 6. Re1 {[%clk 0:02:45.5]} 6... O-O {[%clk
0:03:00.3]} 7. d4 {[%clk 0:02:45.1]} 7... d5 {[%clk 0:02:59]} 8. exd5 {[%clk
0:02:44.6]} 8... Qxd5 {[%clk 0:02:55.9]} 9. Bxc6 {[%clk 0:02:41.2]} 9... bxc6
{[%clk 0:02:49.6]} 10. Rxe7 {[%clk 0:02:40.6]} 10... Bg4 {[%clk 0:02:49.4]} 11.
Re5 {[%clk 0:02:35.8]} 11... Bxf3 {[%clk 0:02:43.9]} 12. gxf3 {[%clk 0:02:34.4]}
12... Qd7 {[%clk 0:02:37.9]} 13. Rxc5 {[%clk 0:02:32.6]} 13... Nd5 {[%clk
0:02:23.6]} 14. Nd2 {[%clk 0:02:27.4]} 14... Qh3 {[%clk 0:02:00.9]} 15. Nf1
{[%clk 0:02:09]} 15... f5 {[%clk 0:01:45.2]} 16. Rxc6 {[%clk 0:01:45.2]} 16...
f4 {[%clk 0:01:44.1]} 17. Rc5 {[%clk 0:01:44.8]} 17... Rf5 {[%clk 0:01:42.2]}
18. Rxd5 {[%clk 0:01:44.6]} 18... Rxd5 {[%clk 0:01:34]} 19. Bxf4 {[%clk
0:01:44.4]} 19... Rf8 {[%clk 0:01:32.2]} 20. Bg3 {[%clk 0:01:43.6]} 20... h5
{[%clk 0:01:24.5]} 21. Ne3 {[%clk 0:01:43.5]} 21... Rg5 {[%clk 0:01:20.1]} 22.
Qf1 {[%clk 0:01:42.7]} 22... Qd7 {[%clk 0:01:15.2]} 23. h4 {[%clk 0:01:40.9]}
23... Ra5 {[%clk 0:01:09.6]} 24. Qd3 {[%clk 0:01:32.6]} 24... Kh7 {[%clk
0:01:08]} 25. Kg2 {[%clk 0:01:26.7]} 25... Qf7 {[%clk 0:01:00.5]} 26. Qe4 {[%clk
0:01:22]} 26... Bh6 {[%clk 0:00:53.9]} 27. a3 {[%clk 0:00:59.2]} 27... Re8
{[%clk 0:00:51.6]} 28. Qd3 {[%clk 0:00:54.4]} 28... Qb7 {[%clk 0:00:44.9]} 29.
Nc4 {[%clk 0:00:51.3]} 29... Qb5 {[%clk 0:00:22.4]} 30. a4 {[%clk 0:00:25.5]}
30... Rxa4 {[%clk 0:00:16.2]} 31. Rxa4 {[%clk 0:00:25.1]} 31... Qxa4 {[%clk
0:00:17.1]} 32. Ne5 {[%clk 0:00:25.3]} 32... Rg8 {[%clk 0:00:15.6]} 33. Qe4
{[%clk 0:00:24.9]} 33... Qe8 {[%clk 0:00:15.3]} 34. Qb7+ {[%clk 0:00:24.3]}
34... Rg7 {[%clk 0:00:15]} 35. Qa6 {[%clk 0:00:24.6]} 35... Qe7 {[%clk
0:00:14.1]} 36. d5 {[%clk 0:00:24.3]} 36... g5 {[%clk 0:00:14.5]} 37. d6 {[%clk
0:00:24.5]} 37... Qd8 {[%clk 0:00:14]} 38. Qd3+ {[%clk 0:00:23.1]} 38... Kg8
{[%clk 0:00:13.5]} 39. Qd5+ {[%clk 0:00:22.5]} 39... Kh7 {[%clk 0:00:14.2]} 40.
Qe4+ {[%clk 0:00:22.5]} 40... Kg8 {[%clk 0:00:14.5]} 41. Qd5+ {[%clk 0:00:22.7]}
41... Kh7 {[%clk 0:00:14.9]} 42. Nf7 {[%clk 0:00:21.3]} 42... Qf6 {[%clk
0:00:12.3]} 43. Nxg5+ {[%clk 0:00:21.4]} 43... Bxg5 {[%clk 0:00:12.2]} 44. hxg5
{[%clk 0:00:21.6]} 44... Rxg5 {[%clk 0:00:13.1]} 45. Qd3+ {[%clk 0:00:21.1]}
45... Kh8 {[%clk 0:00:12.6]} 46. d7 {[%clk 0:00:21.5]} 46... Qd8 {[%clk
0:00:13.2]} 47. Qd4+ {[%clk 0:00:21.4]} 47... Kh7 {[%clk 0:00:13.5]} 48. Qe4+
{[%clk 0:00:21.7]} 48... Kg8 {[%clk 0:00:13.7]} 49. Qe8+ {[%clk 0:00:21.5]} 1-0

[Event "*** SCC Grand Prix: Titled Tuesday Blitz"]
[Site "Chess.com"]
[Date "2020.10.06"]
[Round "5"]
[White "Snegokhod"]
[Black "vladimirdamjanovic"]
[Result "0-1"]
[WhiteElo "2391"]
[BlackElo "2553"]
[TimeControl "180+1"]
[EndTime "10:57:16 PDT"]
[Termination "vladimirdamjanovic won by resignation"]

1. e4 {[%clk 0:03:00.9]} 1... c5 {[%clk 0:02:59.3]} 2. Nf3 {[%clk 0:03:00.4]}
2... d6 {[%clk 0:02:59.1]} 3. d4 {[%clk 0:02:59.6]} 3... cxd4 {[%clk 0:02:59.3]}
4. Qxd4 {[%clk 0:03:00.4]} 4... a6 {[%clk 0:02:59.2]} 5. Be3 {[%clk 0:02:59.7]}
5... Nc6 {[%clk 0:02:59.1]} 6. Qb6 {[%clk 0:03:00.1]} 6... Qxb6 {[%clk
0:02:59.2]} 7. Bxb6 {[%clk 0:03:01]} 7... Nf6 {[%clk 0:02:57.2]} 8. Nc3 {[%clk
0:03:01.3]} 8... Bg4 {[%clk 0:02:55.5]} 9. Be2 {[%clk 0:03:01.1]} 9... Nd7
{[%clk 0:02:48.1]} 10. Nd5 {[%clk 0:02:58.8]} 10... Nxb6 {[%clk 0:02:38.8]} 11.
Nxb6 {[%clk 0:02:58.9]} 11... Rd8 {[%clk 0:02:37.9]} 12. c3 {[%clk 0:02:56.6]}
12... Bxf3 {[%clk 0:02:37.4]} 13. Bxf3 {[%clk 0:02:56.4]} 13... e6 {[%clk
0:02:30.7]} 14. O-O-O {[%clk 0:02:55]} 14... Be7 {[%clk 0:02:30.6]} 15. Kc2
{[%clk 0:02:52.9]} 15... Ne5 {[%clk 0:02:20.5]} 16. Be2 {[%clk 0:02:52.7]} 16...
Nd7 {[%clk 0:02:20.5]} 17. Nc4 {[%clk 0:02:41.4]} 17... Nf6 {[%clk 0:02:17.6]}
18. f3 {[%clk 0:02:39.1]} 18... d5 {[%clk 0:02:15.6]} 19. exd5 {[%clk
0:02:22.9]} 19... Nxd5 {[%clk 0:02:14.9]} 20. Rd3 {[%clk 0:02:10.8]} 20... Rc8
{[%clk 0:02:09]} 21. Kb3 {[%clk 0:02:00]} 21... b5 {[%clk 0:02:04.7]} 22. Ne3
{[%clk 0:01:55.5]} 22... Nf4 {[%clk 0:01:58.2]} 23. Rd2 {[%clk 0:01:55.3]} 23...
Bc5 {[%clk 0:01:54.8]} 24. Nc2 {[%clk 0:01:40.4]} 24... Ke7 {[%clk 0:01:39.3]}
25. g3 {[%clk 0:01:33.8]} 25... Nxe2 {[%clk 0:01:39.4]} 26. Rxe2 {[%clk
0:01:33.9]} 26... a5 {[%clk 0:01:39.5]} 27. a3 {[%clk 0:01:24.2]} 27... Rhd8
{[%clk 0:01:36.2]} 28. Rhe1 {[%clk 0:01:21.1]} 28... Rd3 {[%clk 0:01:33]} 29. f4
{[%clk 0:01:19.1]} 29... g6 {[%clk 0:01:32.3]} 30. Ne3 {[%clk 0:01:18.3]} 30...
a4+ {[%clk 0:01:10.7]} 31. Kc2 {[%clk 0:01:18]} 31... Rxe3 {[%clk 0:01:07.1]}
32. Rxe3 {[%clk 0:01:18]} 32... Bxe3 {[%clk 0:01:08]} 33. Rxe3 {[%clk
0:01:18.6]} 33... Rc5 {[%clk 0:01:08]} 34. Re4 {[%clk 0:01:15.5]} 34... Kd6
{[%clk 0:01:07.1]} 35. Kd3 {[%clk 0:01:10.2]} 35... Rd5+ {[%clk 0:01:05.6]} 36.
Rd4 {[%clk 0:01:07.3]} 36... Kc5 {[%clk 0:01:02.3]} 37. g4 {[%clk 0:00:47.3]}
37... h5 {[%clk 0:00:49.5]} 38. g5 {[%clk 0:00:40.7]} 38... h4 {[%clk
0:00:47.1]} 39. h3 {[%clk 0:00:40.3]} 39... Rxd4+ {[%clk 0:00:45.3]} 40. cxd4+
{[%clk 0:00:39.9]} 40... Kd5 {[%clk 0:00:45.8]} 41. Kc3 {[%clk 0:00:33.3]} 41...
Ke4 {[%clk 0:00:45.5]} 42. Kb4 {[%clk 0:00:33.7]} 42... Kxf4 {[%clk 0:00:39.5]}
43. Kxb5 {[%clk 0:00:34.2]} 43... Kxg5 {[%clk 0:00:33.8]} 44. Kxa4 {[%clk
0:00:33.5]} 44... f5 {[%clk 0:00:34.5]} 45. Kb3 {[%clk 0:00:27]} 45... f4 {[%clk
0:00:34]} 46. Kc3 {[%clk 0:00:25]} 46... f3 {[%clk 0:00:34]} 47. Kd2 {[%clk
0:00:23.3]} 47... Kf4 {[%clk 0:00:33.5]} 48. Ke1 {[%clk 0:00:23.1]} 48... Kg3
{[%clk 0:00:32.8]} 49. Kf1 {[%clk 0:00:23.4]} 49... g5 {[%clk 0:00:33.1]} 50. b4
{[%clk 0:00:17.1]} 50... g4 {[%clk 0:00:33.4]} 51. b5 {[%clk 0:00:16.3]} 51...
gxh3 {[%clk 0:00:32.4]} 52. Kg1 {[%clk 0:00:15.6]} 52... h2+ {[%clk 0:00:32.4]}
53. Kh1 {[%clk 0:00:14.2]} 53... f2 {[%clk 0:00:32.4]} 0-1

[Event "*** SCC Grand Prix: Titled Tuesday Blitz"]
[Site "Chess.com"]
[Date "2020.10.06"]
[Round "5"]
[White "AnonymusDonkey"]
[Black "MarceloPlaya"]
[Result "1-0"]
[WhiteElo "2405"]
[BlackElo "2249"]
[TimeControl "180+1"]
[EndTime "10:57:21 PDT"]
[Termination "AnonymusDonkey won on time"]

1. e4 {[%clk 0:03:00.9]} 1... e6 {[%clk 0:02:58.7]} 2. d4 {[%clk 0:03:00.8]}
2... d5 {[%clk 0:02:58.3]} 3. e5 {[%clk 0:03:01.4]} 3... c5 {[%clk 0:02:57.7]}
4. c3 {[%clk 0:03:01.9]} 4... Nc6 {[%clk 0:02:57.4]} 5. Nf3 {[%clk 0:03:01.8]}
5... Qb6 {[%clk 0:02:57.3]} 6. Na3 {[%clk 0:03:01.8]} 6... Nge7 {[%clk
0:02:51.7]} 7. dxc5 {[%clk 0:02:52.8]} 7... Qd8 {[%clk 0:02:21.6]} 8. Nb5 {[%clk
0:02:22.8]} 8... Ng6 {[%clk 0:02:19.8]} 9. Nd6+ {[%clk 0:02:22.8]} 9... Bxd6
{[%clk 0:02:16.3]} 10. exd6 {[%clk 0:02:23.7]} 10... O-O {[%clk 0:02:13.8]} 11.
Be2 {[%clk 0:02:21.6]} 11... b6 {[%clk 0:02:08.7]} 12. b4 {[%clk 0:02:21]} 12...
bxc5 {[%clk 0:02:07.7]} 13. bxc5 {[%clk 0:02:21.9]} 13... Qa5 {[%clk 0:02:00.2]}
14. Be3 {[%clk 0:02:15.1]} 14... Qxc3+ {[%clk 0:01:58]} 15. Kf1 {[%clk
0:02:15.2]} 15... Bd7 {[%clk 0:01:34.2]} 16. Rc1 {[%clk 0:02:00.5]} 16... Qa5
{[%clk 0:01:30.9]} 17. h4 {[%clk 0:02:00.4]} 17... Qxa2 {[%clk 0:01:23.1]} 18.
h5 {[%clk 0:02:00.3]} 18... Nge5 {[%clk 0:01:22]} 19. Nxe5 {[%clk 0:02:00.2]}
19... Nxe5 {[%clk 0:01:21.1]} 20. h6 {[%clk 0:02:00.6]} 20... g6 {[%clk
0:01:16.6]} 21. Bd4 {[%clk 0:01:46.4]} 21... Ba4 {[%clk 0:00:59.7]} 22. Qe1
{[%clk 0:01:44.7]} 22... f6 {[%clk 0:00:48.8]} 23. f4 {[%clk 0:01:17.3]} 23...
Nc4 {[%clk 0:00:46.9]} 24. Bxc4 {[%clk 0:01:14.5]} 24... dxc4 {[%clk 0:00:33.4]}
25. Qxe6+ {[%clk 0:01:13]} 25... Rf7 {[%clk 0:00:33.9]} 26. Qe2 {[%clk
0:00:48.7]} 26... Qb3 {[%clk 0:00:28.5]} 27. Rh3 {[%clk 0:00:42.7]} 27... Qb7
{[%clk 0:00:26.2]} 28. Qf3 {[%clk 0:00:34.7]} 28... Bc6 {[%clk 0:00:24.9]} 29.
Qf2 {[%clk 0:00:35.1]} 29... Re8 {[%clk 0:00:22.3]} 30. f5 {[%clk 0:00:29]}
30... g5 {[%clk 0:00:19.7]} 31. Rg3 {[%clk 0:00:28.9]} 31... a5 {[%clk
0:00:17.2]} 32. Qd2 {[%clk 0:00:26.7]} 32... a4 {[%clk 0:00:14.7]} 33. Bxf6
{[%clk 0:00:19.2]} 33... Kf8 {[%clk 0:00:05.8]} 34. Bg7+ {[%clk 0:00:18.4]}
34... Rxg7 {[%clk 0:00:04.8]} 35. hxg7+ {[%clk 0:00:19.3]} 35... Qxg7 {[%clk
0:00:04.6]} 36. Qxg5 {[%clk 0:00:18.4]} 36... Qxg5 {[%clk 0:00:03.3]} 37. Rxg5
{[%clk 0:00:19.3]} 37... a3 {[%clk 0:00:02.8]} 38. Rg3 {[%clk 0:00:17.9]} 38...
a2 {[%clk 0:00:02.4]} 39. Ra3 {[%clk 0:00:16.8]} 39... Bd5 {[%clk 0:00:01.8]}
40. Rxa2 {[%clk 0:00:16]} 40... c3 {[%clk 0:00:02]} 41. Ra7 {[%clk 0:00:15.1]}
41... Bc4+ {[%clk 0:00:01.8]} 42. Kf2 {[%clk 0:00:14.9]} 1-0